Cogmind - Beta 11 X9 @@@ ROGUE MODE // 2021.12.26 @ 17:17:22 // Winter2021/Sauler Player: Judas Result: Destroyed by D-53 Grenadier with Mini Grenade Launcher Performance ------------- Evolutions (0) 0 Regions Visited (4) 800 Robots Destroyed (20) 100 Value Destroyed (426) 426 Prototype IDs (24) 480 Alien Tech Used (0) 0 Bonus (291) 291 TOTAL SCORE: 2097 Bonus ------- Follower Combat Kills 14 Aligned with FarCom 300 Friendly Fire -23 Cogmind --------- Core Integrity 0/250 Matter 265/300 Energy 87/100 System Corruption 0% Temperature Cool (0) Movement Treading (160) Location -9/Mines Parts ------- > --- POWER (1) -------- (None) > --- PROPULSION (2) --- Medium Treads > --- UTILITY (2) ------ Small Storage Unit > --- WEAPON (2) ------- Beam Cannon Mini Grenade Launcher > --- INVENTORY (8) ---- Heat Sink Improved Cooling System Coolant Injector High-capacity Matter Pod (200) Lightning Gun Latent Energy Streamer Peak State ------------ > --- POWER ------------ Ion Engine > --- PROPULSION ------- Light Treads Medium Treads > --- UTILITY ---------- Small Storage Unit Experimental Sensor Array > --- WEAPON ----------- Lightning Gun Arc Projector > --- INVENTORY -------- Heat Sink Improved Cooling System High-capacity Matter Pod Latent Energy Streamer Beam Cannon Beam Cannon Assault Rifle Grenade Launcher [Rating: 26] Favorites ----------- Power Ion Engine Engine Ion Engine Propulsion Aluminum Leg Treads Light Treads Leg Aluminum Leg Utility Small Storage Unit Device Improved Terrain Scanner Storage Small Storage Unit Weapon Assault Rifle Energy Gun Arc Projector Energy Cannon Beam Cannon Ballistic Gun Assault Rifle Launcher Grenade Launcher Build | -11 -10 -10 -10 -9 ------- Run | Scr Mat Min Exi Min Slots Evolved . | . . . . . Power . | . . . . . Propulsion . | . . . . . Utility . | . . . . . Weapon . | . . . . . Parts Attached 16 | 1 2 5 . 8 Power 1 | . . 1 . . Engine 1 | . . 1 . . Core . | . . . . . Reactor . | . . . . . Propulsion 3 | . . 2 . 1 Treads 3 | . . 2 . 1 Leg . | . . . . . Wheel . | . . . . . Hover . | . . . . . Flight . | . . . . . Utility 2 | 1 . . . 1 Device 2 | 1 . . . 1 Storage . | . . . . . Processor . | . . . . . Hackware . | . . . . . Protection . | . . . . . Artifact . | . . . . . Weapon 10 | . 2 2 . 6 Energy Gun 2 | . . . . 2 Energy Cannon 4 | . 2 . . 2 Ballistic Gun 2 | . . 2 . . Ballistic Cannon . | . . . . . Launcher 2 | . . . . 2 Special Weapon . | . . . . . Impact Weapon . | . . . . . Slashing Weapon . | . . . . . Piercing Weapon . | . . . . . Special Melee Weapon . | . . . . . Unidentified Prototypes 1 | . . . . 1 Parts Lost 8 | . . 3 . 5 Power 2 | . . 1 . 1 Propulsion 3 | . . 2 . 1 Utility 1 | . . . . 1 Weapon 2 | . . . . 2 Highest Loss Streak 3 | . . 2 . 3 Average Slot Usage (%) 95 | . 100 99 100 79 Engine 12 | . 14 13 14 4 Treads 13 | . . 3 28 27 Leg 14 | . 28 24 . . Device 12 | . 14 14 14 4 Storage 14 | . 14 14 14 14 Energy Gun 3 | . 1 . . 16 Energy Cannon 6 | . 24 6 . . Ballistic Gun 15 | . 1 21 28 1 Launcher 1 | . . . . 9 Naked Turns . | . . . . . Heaviest Build 19 | 11 15 17 15 19 Greatest Support 48 | 20 20 40 40 48 Greatest Overweight (x) . | . . . . . Average Overweight (x) . | . . . . . Largest Inventory Capacity 8 | 8 8 8 8 8 Average Capacity 8 | 8 8 8 8 8 Most Carried 8 | 6 8 8 8 8 Average Carried 7 | 6 7 7 6 7 Final Capacity 8 | 8 8 8 8 8 Final Carried 8 | 6 8 6 8 6 Class Distribution -------------------- 94% | Mutant 5% | Skirmisher Dominant Class ---------------- Mutant | -10/Materials Mutant | -10/Mines Mutant | -10/Exiles Mutant | -9/Mines Resources | -11 -10 -10 -10 -9 ----------- Run | Scr Mat Min Exi Min Matter Collected 441 | 221 20 130 . 70 Remotely . | . . . . . Salvage Created 722 | 103 240 265 . 114 Parts 32 | 4 7 12 . 9 Haulers Intercepted . | . . . . . Recyclers Shooed 1 | . 1 . . . Parts Field Recycled . | . . . . . Retrieved Matter . | . . . . . Parts Self-Destructed . | . . . . . Prevented . | . . . . . Kills | -11 -10 -10 -10 -9 ------- Run | Scr Mat Min Exi Min Combat Hostiles Destroyed 14 | . . 7 . 7 Guns 3 | . . 3 . . Cannons 4 | . . 4 . . AOE 7 | . . . . 7 Classes Destroyed 5 | 2 1 2 . . Worker 1 | . 1 . . . Tunneler 1 | 1 . . . . Recycler 4 | 1 3 . . . Swarmer 6 | . . 2 . 4 Grunt 8 | . . 5 . 3 Best Kill Streak 6 | 2 3 2 . 6 Combat Bots Only 6 | . . 2 . 6 Max Kills in Single Turn 2 | 1 2 1 . 2 Gunslinging . | . . . . . Exploded 2 | . . . . 2 Melee . | . . . . . Uniques/NPCs Destroyed . | . . . . . Combat | -11 -10 -10 -10 -9 -------- Run | Scr Mat Min Exi Min Damage Taken 1276 | . . 612 . 664 Core 258 | . . 118 . 140 Absorbed by Shields . | . . . . . Core Remaining (%) 100 | 100 . . . . Volleys Fired 60 | 11 11 27 . 11 Largest 2 | 2 2 2 . 2 Hottest 120 | 60 120 120 . 110 Shots Fired 115 | 22 22 54 . 17 Gun 64 | 22 . 30 . 12 Cannon 46 | . 22 24 . . Launcher 5 | . . . . 5 Special . | . . . . . Kinetic 41 | 11 . 30 . . Thermal 57 | 11 22 24 . . Explosive 5 | . . . . 5 Electromagnetic 12 | . . . . 12 Robot Hit Streak 8 | 7 2 8 . 3 Robot Miss Streak 4 | 4 3 3 . 3 Penetration Max . | . . . . . Secondary Targets . | . . . . . Shots Hit Robots 64 | 12 7 37 . 8 Core Hits 34 | 4 4 11 . 15 Critical Kills . | . . . . . Critical Parts Destroyed . | . . . . . Critical Strikes . | . . . . . Melee Attacks . | . . . . . Impact . | . . . . . Slashing . | . . . . . Piercing . | . . . . . Sneak Attacks . | . . . . . Combat Hostiles . | . . . . . Follow-up Attacks . | . . . . . Damage Inflicted 1366 | 124 141 560 . 541 Guns 449 | 124 . 253 . 72 Cannons 448 | . 141 307 . . Explosions 469 | . . . . 469 Melee . | . . . . . Ramming . | . . . . . Kinetic 300 | 47 . 253 . . Thermal 525 | 77 141 307 . . Explosive 469 | . . . . 469 Electromagnetic 72 | . . . . 72 Impact . | . . . . . Slashing . | . . . . . Piercing . | . . . . . Highest Corruption . | . . . . . Average Corruption . | . . . . . Corruption Purged . | . . . . . Overload Shots . | . . . . . Overflow Damage 25 | . . 16 . 9 Projectiles 16 | . . 16 . . Explosions 9 | . . . . 9 Melee . | . . . . . Knockbacks . | . . . . . Impact . | . . . . . Kinetic . | . . . . . Secondary . | . . . . . Self-Inflicted Damage 35 | . . . . 35 Shots 2 | . . . . 2 Rammed . | . . . . . Targets Rammed 1 | . . 1 . . Kicked 1 | . . 1 . . Crushed . | . . . . . Highest Temperature 409 | 60 204 409 . 375 Average Temperature 131 | 31 77 167 . 204 Received Heat Transfer 435 | . . 312 . 123 Effects 5 | . . 4 . 1 Shutdowns 1 | . . 1 . . Energy Bleed 4 | . . 3 . 1 Siege Activations . | . . . . . Robots Corrupted . | . . . . . Combat Hostiles . | . . . . . Parts Fried 2 | . . . . 2 Impact Corruptions . | . . . . . Robots Melted . | . . . . . Combat Hostiles . | . . . . . Parts Melted . | . . . . . Heat Transferred 1100 | 175 296 629 . . Parts Sabotaged . | . . . . . Parts Stolen . | . . . . . Parts Stripped . | . . . . . Power Chain Reactions . | . . . . . Missiles Intercepted . | . . . . . Alert | -11 -10 -10 -10 -9 ------- Run | Scr Mat Min Exi Min Peak Influence 208 | 10 58 132 . 208 Initial 22 | . 6 22 . . Average 62 | 3 18 68 . 96 Maximum Alert Level 1 | . . . . 1 Low Security (%) 99 | 100 100 100 . 97 Level 1 . | . . . . 2 Level 2 . | . . . . . Level 3 . | . . . . . Level 4 . | . . . . . Level 5 . | . . . . . High Security . | . . . . . Max Security . | . . . . . Squads Dispatched 1 | . . 1 . . Investigation 1 | . . 1 . . Extermination . | . . . . . Reinforcement . | . . . . . Assault . | . . . . . Garrison . | . . . . . Intercept . | . . . . . Construction Impeded . | . . . . . Haulers Reinforced . | . . . . . Active Scanning Responses . | . . . . . Cargo Convoy Interrupts . | . . . . . Stealth | -11 -10 -10 -10 -9 --------- Run | Scr Mat Min Exi Min Distress Signals . | . . . . . Communications Jammed . | . . . . . Distress Signals . | . . . . . Times Spotted 35 | . 1 8 . 26 Peak Tracking Total 13 | . 1 5 . 13 Tactical Retreats . | . . . . . Traps | -11 -10 -10 -10 -9 ------- Run | Scr Mat Min Exi Min Traps Triggered . | . . . . . Indirectly . | . . . . . Trap Hack Attempts . | . . . . . Triggered . | . . . . . Disarmed . | . . . . . Reprogrammed . | . . . . . Reused . | . . . . . Traps Extracted . | . . . . . Installed . | . . . . . Triggered . | . . . . . Machines | -11 -10 -10 -10 -9 ---------- Run | Scr Mat Min Exi Min Machines Disabled 1 | . . . . 1 Max in Single Turn 1 | . . . . 1 Machines Sabotaged . | . . . . . Garrisons Compromised . | . . . . . Overloaded Fab Kills . | . . . . . Hacking | -11 -10 -10 -10 -9 --------- Run | Scr Mat Min Exi Min Machines Accessed 6 | . 3 1 1 1 Terminals 4 | . 3 1 . . Fabricators . | . . . . . Repair Stations . | . . . . . Recycling Units . | . . . . . Scanalyzers . | . . . . . Garrison Access . | . . . . . Total Hacks 17 | . 13 2 1 1 Successful 7 | . 5 . 1 1 Failed 10 | . 8 2 . . Catastrophic . | . . . . . Database Lockouts . | . . . . . Manual 16 | . 13 1 2 . Terminals 15 | . 13 2 . . Fabricators . | . . . . . Repair Stations . | . . . . . Recycling Units . | . . . . . Scanalyzers . | . . . . . Garrison Access . | . . . . . Terminal Hacks 4 | . 2 . 1 1 Robot Analysis 2 | . 2 . . . Open Door 1 | . . . . 1 EX-Prototype ID Bank 1 | . . . 1 . Fabricator Hacks . | . . . . . Repair Station Hacks . | . . . . . Recycling Unit Hacks . | . . . . . Scanalyzer . | . . . . . Garrison Access Hacks . | . . . . . Unauthorized Hacks 3 | . 3 . . . Terminals 3 | . 3 . . . Assimilate 1 | . 1 . . . Botnet 2 | . 2 . . . Fabricators . | . . . . . Repair Stations . | . . . . . Recycling Units . | . . . . . Scanalyzers . | . . . . . Garrison Access . | . . . . . Data Cores Recovered . | . . . . . Used . | . . . . . Hacking Detections 3 | . 2 1 . . Full Trace Events 1 | . . 1 . . Feedback Events . | . . . . . Feedback Blocked . | . . . . . Robot Schematics Acquired . | . . . . . Robots Built . | . . . . . Authchips . | . . . . . Time . | . . . . . Total Robot Build Rating . | . . . . . Part Schematics Acquired . | . . . . . Parts Built . | . . . . . Authchips . | . . . . . Time . | . . . . . Total Part Build Rating . | . . . . . Parts Repaired . | . . . . . Time . | . . . . . Parts Recycled . | . . . . . Recycled Matter . | . . . . . Retrieved Matter . | . . . . . Retrieved Components . | . . . . . Parts Scanalyzed . | . . . . . Part Schematics Acquired . | . . . . . Parts Damaged . | . . . . . Bothacking | -11 -10 -10 -10 -9 ------------ Run | Scr Mat Min Exi Min Used RIF Installer . | . . . . . Robots Hacked . | . . . . . Non-combat . | . . . . . Combat . | . . . . . Robot Hacks Applied . | . . . . . Relay Couplers Released . | . . . . . Fabnet Peak Effective % . | . . . . . Robots Rewired . | . . . . . Allies Hacked . | . . . . . Hacks Repelled . | . . . . . Allies | -11 -10 -10 -10 -9 -------- Run | Scr Mat Min Exi Min Total Allies 3 | . 1 . . 2 Largest Group 2 | . 1 1 1 2 Highest-Rated Group 43 | . 10 10 10 43 Highest-Rated Ally 31 | . 10 10 10 31 Total Orders . | . . . . . Ally Attacks 6 | . . . . 6 Total Damage 82 | . . . . 82 Kills 2 | . . . . 2 Allies Corrupted . | . . . . . Allies Melted . | . . . . . Intel | -11 -10 -10 -10 -9 ------- Run | Scr Mat Min Exi Min Robot Analysis Total 2 | . 2 . . . Derelict Logs Recovered 2 | . . 1 . 1 Drone Launches . | . . . . . Drone Recoveries . | . . . . . Exploration | -11 -10 -10 -10 -9 ------------- Run | Scr Mat Min Exi Min Turns Passed 1796 | 47 295 694 430 330 Spaces Moved 1118 | 13 208 453 268 176 Core . | . . . . . Treads 487 | . . 43 268 176 Legs 631 | 13 208 410 . . Wheels . | . . . . . Hover . | . . . . . Flight . | . . . . . Fastest Speed 120 | 120 120 120 160 160 Average Speed 137 | 120 120 123 160 160 Slowest Speed 160 | 120 120 160 160 160 Overloaded Moves . | . . . . . Propulsion Burnouts . | . . . . . Robots Hopped . | . . . . . Cave-ins Triggered . | . . . . . Exploration Rate (%) 46 | 2 35 93 63 39 Regions Visited 4 Branch Regions 3 Pre-discovered Areas 1 | . . 1 . . Known Exits Taken . | . . . . . Unknown Exits Taken 4 | 1 1 1 1 . Scrap Searched 3 | . . 1 . 2 Spaces Dug . | . . . . . Terrain Destroyed 38 | . . . . 38 Melee . | . . . . . Projectile . | . . . . . AOE 38 | . . . . 38 Terrain Rammed . | . . . . . Walls Destroyed . | . . . . . Machines Disabled . | . . . . . Actions | -11 -10 -10 -10 -9 --------- Run | Scr Mat Min Exi Min Total 1266 | 24 233 532 269 208 Wait 49 | . 3 44 . 2 Move 1114 | 12 207 452 267 176 Hop . | . . . . . Pick Up 13 | . 5 2 2 4 Fast Attach 6 | 1 2 . . 3 Attach 6 | . . 3 . 3 Detach . | . . . . . Swap 4 | . . 2 . 2 Drop 13 | . 5 1 . 7 Fire 60 | 11 11 27 . 11 Melee . | . . . . . Ram . | . . . . . Kick 1 | . . 1 . . Crush . | . . . . . Escape Stasis . | . . . . . Rewire . | . . . . . Trap . | . . . . . Miscellaneous . | . . . . . Route ------- -11/Scrapyard -10/Materials (discovered 2 exits: [*Mat] / *Min) -10/Mines (discovered 3 exits: [*Mat x2] / *Exi) -10/Exiles (discovered 2 exits: *Min x2) -9/Mines History --------- Turn | Location | Event 1 | -11/Scrapyard | Discovered new exit (range 3) 48 | -11/Scrapyard | Entered Materials 134 | -10/Materials | Discovered new exit (range 15) 300 | -10/Materials | Build established: Mutant 322 | -10/Materials | Discovered new exit (range 12) 343 | -10/Materials | Entered Mines 343 | -10/Mines | Accompanied by 1 ally 367 | -10/Mines | Met a Derelict bent on vengeance 735 | -10/Mines | Discovered new exit (range 6) 789 | -10/Mines | Found a damaged Exp. Sensor Array with a note attached 792 | -10/Mines | Found Prototype Device 808 | -10/Mines | Discovered new exit (range 13) 811 | -10/Mines | Learned location of Storage (-9) 814 | -10/Mines | Learned Materials stockpile data 976 | -10/Mines | Discovered new exit (range 13) 1021 | -10/Mines | Deemed a non-threat by the Exiles lab entrance 1037 | -10/Mines | Entered Exiles 1037 | -10/Exiles | Accompanied by 1 ally 1063 | -10/Exiles | Discovered new exit (range 15) 1076 | -10/Exiles | Met 8R-AWN 1100 | -10/Exiles | Met EX-HEX 1153 | -10/Exiles | Met EX-BIN 1170 | -10/Exiles | Aligned with FarCom system 1172 | -10/Exiles | Given EX-Vault access code 1210 | -10/Exiles | Opened EX-Vault 1223 | -10/Exiles | Found Latent Energy Streamer 1283 | -10/Exiles | Warned to stay clear of 0b10 Research branches 1326 | -10/Exiles | Met EX-DEC 1451 | -10/Exiles | Discovered new exit (range 11) 1467 | -10/Exiles | Left Exiles lab with Latent Energy Streamer 1467 | -10/Exiles | Entered Mines 1467 | -9/Mines | Accompanied by 1 ally 1470 | -9/Mines | Met a Derelict who couldn't figure out how to use a Trap Extractor 1496 | -9/Mines | Identified Exp. Sensor Array 1556 | -9/Mines | Core integrity fell below 50% 1761 | -9/Mines | Assembled infested the area 1766 | -9/Mines | Assisted by a Guerilla fighting off Assembled 1785 | -9/Mines | Core integrity fell below 20% 1797 | -9/Mines | Destroyed by D-53 Grenadier with Mini Grenade Launcher Last Messages --------------- 01783_ Core Extractor disabled. 01784_ as-90005 destroyed. 01784_ as-25485 destroyed. 01784_ as-85099 destroyed. 01785_ The unstable cave ceiling collapses. 01786_ Lgt. Treads destroyed. 01786_ as-06263 destroyed. 01786_ as-50282 destroyed. 01786_ as-59371 destroyed. 01786_ as-30350 destroyed. 01786_ as-88670 destroyed. 01791_ as-65655 destroyed. 01792_ as-79247 destroyed. 01792_ G-47 Trooper destroyed. 01793_ The unstable cave ceiling collapses. 01794_ as-33423 destroyed. 01794_ as-05530 destroyed. 01795_ as-30630 destroyed. 01795_ as-83311 destroyed. 01796_ The unstable cave ceiling collapses. Map ----- +----------------------------------------------------+ | # ##?????????????????????????????????? | | ### ##??????????????????????????????????? | | #### ##???????????????????????????????????? | | ##?# #????????????????????????????????????? | | ##?# #????????????????????????????????????? | | ##?# #????????????????????????????????????? | | ## #????????????????????????????????????? | | #???????????????##???????????????????? | | #??????????????? =???????????????????? | | %##????????????% %????????????????? | | " %#?????????? * #???????????????? | | ## " #??# ???????????????? | | ### #######? #??# % #???????????????? | | ??############ ## # % #??????????????? | | ?????# # #??????????????? | | ?????# ##### ###### # ???????????????? | | ###### #???# #### # ???????????????? | | %[ #???# # #???????????????? | | ##########?# ????????????????? | | ?# #!=[ ###??????????????? | | ?# %=%] %dd ###????????????? | | ?# """ """ t #????????????? | | ?????" """ # !# ""#????????????? | | ?????" """ # [ ""#????????????? | | ????? ????# "#????????????? | | ?????" """?????# @ #????????????? | | ?????" """?????# # % #????????????? | | ????"" """?????# #### #????????????? | | ?????? ????????#######??# #????????????? | | ????????????????????????# # ##????????????? | | ????????????????????????#### #?????????????? | | ???????????????????????????? #?????????????? | | ?????????????????????????????#?????????????? | | ???????????????????????????????????????????? | | ???????????????????????????????????????????? | | ???????????????????????????????????????????? | | ???????????????????????????????????????????? | | ???????????????????????????????????????????? | | ???????????????????????????????????????????? | | ?????????????????????s?????????????????????? | | ????????????????????s??????????????????????? | | ?????????????????????s?????????????????????? | | ???????????????????????????????????????????? | | ???????????????????????????????????????????? | | ???????????????????????????????????????????? | | ???????????????????????????????????????????? | | ???????????????????????????????????????????? | | ???????????????????????????????????????????? | | ???????????????????????????????????????????? | | ???????????????????????????????????????????? | +----------------------------------------------------+ Best States ------------- Heat Dissipation 25 Energy Generation 10 Energy Capacity 250 Matter Stores 300 Matter Capacity 300 Sight Range 16 Robot Scan Range 20 Terrain Scan Range 16 Terrain Scan Density 10 Evasion (%) 55 Recoil Reduction 2 Item Schematics ----------------- None Robot Schematics ------------------ None Fabricated ------------ Nothing Alien Tech Used ----------------- None Achievements -------------- None Challenges ------------ None Game ------ Seed ChipSupersonicShield Manual? 0 Play Time 00:17:56 Cumulative 100.0 hours Start 2021.12.26 @ 14:51:54 End 2021.12.26 @ 17:17:22 Sessions 1 Manual Loads 0 Difficulty Rogue Special Mode Winter2021/Sauler Game No. 177 Rogue 172 Adventurer 0 Explorer 5 Win Type - Total 0 Types 0/0/0/0/0/0/0/0/0 Lore% 39 Gallery% 54 Achievement% 43 Wizard Run 0 Options --------- ASCII 0 Keyboard 0 Movement Mouse Keybinds 0 Fullscreen 2 Font 18/Smallcaps Map View 76x50 Tactical HUD 1 Map Filters NONE Filters NONE Steam X RUN: eb073137-c115-4118-bb29-f1861adfd2b0